fUSD/lending_fUSD_20250623
["ID","MTS","AMOUNT","RATE_DAILY","PERIOD"]
[367190858,1750697440039,-500.0,0.00022896,2]
[367190860,1750697440052,-500.0,0.00022896,2]
[367190862,1750697440064,-500.0,0.00022896,2]
[367190865,1750697440078,-500.0,0.00022896,2]
[367190867,1750697440094,-500.0,0.00022896,2]
[367190870,1750697440112,-500.0,0.00022896,2]
[367190873,1750697440127,-500.0,0.00022896,2]
[367190875,1750697440143,-500.0,0.00022896,2]
[367190878,1750697440158,-500.0,0.00022896,2]
[367190880,1750697440174,-243.85294817,0.00022896,2]
[367190883,1750697440195,-256.14705183,0.00022896,2]
[367190886,1750697440210,-500.0,0.00022896,2]
[367190888,1750697440224,-500.0,0.00022896,2]
[367190891,1750697440239,-236.92050041,0.00022896,2]
[367190894,1750697440258,-263.07949959,0.00022896,2]
[367190896,1750697440277,-96.84848611,0.00022896,2]
[367190899,1750697440296,-403.15151389,0.00022896,2]
[367190901,1750697440309,-166.52348611,0.00022896,2]
[367190909,1750697440390,-204.15888162,0.00022896,2]
[367190911,1750697440402,-500.0,0.00022896,2]
[367190914,1750697440421,-500.0,0.00022896,2]
[367190917,1750697440434,-500.0,0.00022896,2]
[367190919,1750697440446,-500.0,0.00022896,2]
[367190921,1750697440458,-500.0,0.00022896,2]
[367190925,1750697440492,-500.0,0.00022896,2]
[367190928,1750697440506,-500.0,0.00022896,2]
[367190930,1750697440522,-500.0,0.00022896,2]
[367190933,1750697440536,-500.0,0.00022896,2]
[367190935,1750697440551,-500.0,0.00022896,2]
[367190938,1750697440566,-500.0,0.00022896,2]
[367190940,1750697440579,-500.0,0.00022896,2]
[367190942,1750697440595,-500.0,0.00022896,2]
[367190945,1750697440609,-500.0,0.00022896,2]
[367190947,1750697440624,-500.0,0.00022896,2]
[367190950,1750697440639,-500.0,0.00022896,2]
[367190952,1750697440653,-500.0,0.00022896,2]
[367190954,1750697440667,-490.0,0.00022897,2]
[367190957,1750697440683,-500.0,0.00022897,2]
[367190959,1750697440699,-490.0,0.00022897,2]
[367190962,1750697440713,-596.04,0.00022897,2]
[367190964,1750697440727,-490.0,0.00022897,2]
[367190966,1750697440740,-490.0,0.00022897,2]
[367190969,1750697440754,-490.0,0.00022897,2]
[367190971,1750697440767,-9128.95,0.00022897,2]
[367190974,1750697440781,-3166.58,0.00022897,2]
[367190976,1750697440794,-4172.33,0.00022897,2]
[367190978,1750697440806,-2407.16,0.00022897,2]
[367190980,1750697440820,-2252.74,0.00022897,2]
[367190983,1750697440833,-4218.7,0.00022897,2]
[367190985,1750697440848,-7949.68,0.00022897,2]
[367190987,1750697440861,-2098.53136749,0.00022897,2]
[367191239,1750697443211,-202.0,0.00021587,2]
[367191241,1750697443221,-2298.0,0.00022897,2]
[367191244,1750697443247,-1498.12863251,0.00022897,2]
[367191246,1750697443257,-1768.44,0.00022897,2]
[367191248,1750697443268,-6475.83,0.00022897,2]
[367191250,1750697443278,-161.44944061,0.00022897,2]
[367191252,1750697443288,-9373.11,0.00022897,2]
[367191254,1750697443297,-3805.09,0.00022897,2]
[367191256,1750697443307,-855.9103362,0.00022897,2]
[367191260,1750697443336,-852.4296638,0.00022897,2]
[367191262,1750697443349,-362.96164525,0.00022897,2]
[367191552,1750697445979,-1628.77835475,0.00022897,2]
[367191554,1750697445988,-377.46340415,0.00022897,2]
[367191559,1750697446032,-3286.48981878,0.00022897,2]
[367191566,1750697446088,-1480.50677707,0.00022897,2]
[367191568,1750697446098,-6154.02,0.00022897,2]
[367191570,1750697446107,-32928.66080528,0.00022897,2]
[367191575,1750697446143,-402.20579973,0.00022897,2]
[367191577,1750697446155,-51444.42997564,0.00022897,2]
[367191583,1750697446203,-2501.5,0.00022897,2]
[367194267,1750698138335,193.57,0.00027307,120]
[367194268,1750698174212,-203.0,0.00019587,2]
[367194269,1750698174235,-203.0,0.00021424,4]
[367194270,1750698174258,-193.57,0.00021846,2]
[367194271,1750698174279,-184.61879893,0.00021846,2]
[367194272,1750698174300,-2526.44,0.00021929,2]
[367194273,1750698174320,-200.0,0.00021946,7]
[367194274,1750698174342,-335.43,0.00021954,2]
[367194275,1750698174362,-168.55,0.00021954,2]
[367194276,1750698174383,-666.0,0.00021967,2]
[367194277,1750698174404,-934.0,0.00021979,2]
[367194278,1750698174425,-14730.16,0.0002198,2]
[367194279,1750698174448,-6411.58,0.0002198,2]
[367194280,1750698174468,-1000.0,0.00021993,2]
[367194281,1750698174489,-201.17498663,0.00022237,2]
[367194282,1750698174513,-150.0,0.0002243,2]
[367194283,1750698174537,-300.0,0.000226,8]
[367194284,1750698174558,-600.0,0.000227,8]
[367194285,1750698174582,-150.0,0.00022738,2]
[367194286,1750698174604,-765.6692922,0.00022794,2]
[367194287,1750698174626,-900.0,0.000228,8]
[367194288,1750698174648,-6708.23475049,0.00022892,2]
[367194289,1750698174669,-26023.56787816,0.00022894,2]
[367194290,1750698174692,-317.02782982,0.00022894,2]
[367194291,1750698174714,-158.30547889,0.00022895,2]
[367194292,1750698174735,-258.02062779,0.00022895,2]
[367194293,1750698174756,-258.02062779,0.00022896,2]
[367194294,1750698174778,-217.78226853,0.00022896,2]
[367194295,1750698174799,-258.02062779,0.00022896,2]
[367194296,1750698174820,-339.34216,0.00022897,2]
[367194297,1750698174841,-151.0,0.00022897,2]
[367194298,1750698174861,-592.31999242,0.00022898,2]
[367194299,1750698174883,-13589.16585172,0.00022898,2]
[367194300,1750698174903,-201.619645,0.000229,2]
[367194301,1750698174925,-1200.0,0.000229,8]
[367194302,1750698174947,-500.0,0.00022973,2]
[367194303,1750698174968,-500.0,0.00022973,2]
[367194304,1750698174989,-500.0,0.00022973,2]
[367194305,1750698175010,-500.0,0.00022973,2]
[367194306,1750698175030,-362.77268615,0.00022973,2]
[367194307,1750698175051,-500.0,0.00022973,2]
[367194308,1750698175072,-500.0,0.00022973,2]
[367194309,1750698175092,-500.0,0.00022973,2]
[367194310,1750698175115,-500.75095073,0.00022973,2]
[367194311,1750698175135,-500.58044582,0.00022973,2]
[367194312,1750698175157,-500.0,0.00022973,2]
[367194313,1750698175178,-500.0,0.00022973,2]
[367194314,1750698175201,-500.0,0.00022973,2]
[367194315,1750698175223,-207.4,0.0002298,2]
[367194316,1750698175244,-151.0,0.00022982,2]
[367194317,1750698175265,-151.0,0.00022982,2]
[367194318,1750698175288,-151.0,0.00022982,2]
[367194319,1750698175309,-668.65185757,0.00022982,2]
[367194320,1750698175332,-151.0,0.00022982,2]
[367194321,1750698175354,-151.0,0.00022982,2]
[367194322,1750698175375,-151.0,0.00022982,2]
[367194323,1750698175396,-285.80488263,0.00022982,2]
[367194324,1750698175417,-9279.7636899,0.00022984,2]
[367194325,1750698175441,-26023.56787809,0.00022985,2]
[367194326,1750698175461,-490.0,0.00022992,2]
[367194327,1750698175486,-490.0,0.00022992,2]
[367194328,1750698175513,-301.62104477,0.00022992,2]
[367194329,1750698175541,-256.05501218,0.00022992,2]
[367194330,1750698175564,-500.0,0.00022992,2]
[367194331,1750698175586,-241.0449959,0.00022992,2]
[367194332,1750698175608,-348.48415438,0.00022992,2]
[367194333,1750698175630,-278.73,0.00022992,2]
[367194334,1750698175655,-500.0,0.00022992,2]
[367194335,1750698175679,-500.0,0.00022992,2]
[367194336,1750698175702,-500.0,0.00022992,2]
[367194337,1750698175726,-500.0,0.00022992,2]
[367194338,1750698175750,-500.0,0.00022992,2]
[367194339,1750698175772,-500.0,0.00022992,2]
[367194340,1750698175794,-500.0,0.00022992,2]
[367194341,1750698175817,-500.0,0.00022992,2]
[367194342,1750698175845,-500.0,0.00022992,2]
[367194343,1750698175874,-500.0,0.00022992,2]
[367194344,1750698175898,-500.0,0.00022992,2]
[367194345,1750698175922,-500.0,0.00022992,2]
[367194346,1750698175947,-500.0,0.00022992,2]
[367194347,1750698175971,-500.0,0.00022992,2]
[367194348,1750698175995,-500.0,0.00022992,2]
[367194349,1750698176019,-500.0,0.00022992,2]
[367194350,1750698176043,-500.0,0.00022992,2]
[367194351,1750698176067,-500.0,0.00022992,2]
[367194352,1750698176092,-500.0,0.00022992,2]
[367194353,1750698176117,-500.0,0.00022992,2]
[367194354,1750698176140,-500.0,0.00022992,2]
[367194355,1750698176163,-500.0,0.00022992,2]
[367194356,1750698176186,-500.0,0.00022992,2]
[367194357,1750698176211,-500.0,0.00022992,2]
[367194358,1750698176233,-500.0,0.00022992,2]
[367194359,1750698176256,-500.0,0.00022992,2]
[367194360,1750698176280,-500.0,0.00022992,2]
[367194361,1750698176303,-500.0,0.00022992,2]
[367194362,1750698176326,-500.0,0.00022992,2]
[367194363,1750698176349,-500.0,0.00022992,2]
[367194364,1750698176371,-500.0,0.00022992,2]
[367194365,1750698176394,-500.0,0.00022992,2]
[367194366,1750698176417,-500.0,0.00022992,2]
[367194367,1750698176441,-500.0,0.00022992,2]
[367194368,1750698176464,-500.0,0.00022992,2]
[367194369,1750698176488,-500.0,0.00022992,2]
[367194370,1750698176513,-500.0,0.00022992,2]
[367194371,1750698176537,-500.0,0.00022992,2]
[367194372,1750698176563,-500.0,0.00022992,2]
[367194373,1750698176586,-500.0,0.00022992,2]
[367194374,1750698176609,-500.0,0.00022992,2]
[367194375,1750698176631,-500.0,0.00022992,2]
[367194376,1750698176653,-500.0,0.00022992,2]
[367194377,1750698176676,-500.0,0.00022992,2]
[367194378,1750698176702,-500.0,0.00022992,2]
[367194379,1750698176724,-500.0,0.00022992,2]
[367194380,1750698176747,-500.0,0.00022992,2]
[367194381,1750698176769,-500.0,0.00022992,2]
[367194382,1750698176791,-500.0,0.00022992,2]
[367194383,1750698176817,-500.0,0.00022992,2]
[367194384,1750698176841,-500.0,0.00022992,2]
[367194385,1750698176865,-500.0,0.00022992,2]
[367194386,1750698176886,-500.0,0.00022992,2]
[367194387,1750698176909,-500.0,0.00022992,2]
[367194388,1750698176931,-500.0,0.00022992,2]
[367194389,1750698176955,-500.0,0.00022992,2]
[367194390,1750698176977,-500.0,0.00022992,2]
[367194391,1750698176998,-500.0,0.00022992,2]
[367194392,1750698177020,-500.0,0.00022992,2]
[367194393,1750698177043,-500.0,0.00022992,2]
[367194394,1750698177065,-500.0,0.00022992,2]
[367194395,1750698177087,-500.0,0.00022992,2]
[367194396,1750698177108,-500.0,0.00022992,2]
[367194397,1750698177129,-500.0,0.00022992,2]
[367194398,1750698177150,-500.0,0.00022992,2]
[367194399,1750698177172,-500.0,0.00022992,2]
[367194400,1750698177195,-500.0,0.00022992,2]
[367194401,1750698177216,-500.0,0.00022992,2]
[367194402,1750698177237,-500.0,0.00022992,2]
[367194403,1750698177259,-500.0,0.00022992,2]
[367194404,1750698177281,-500.0,0.00022992,2]
[367194405,1750698177305,-500.0,0.00022992,2]
[367194406,1750698177330,-500.0,0.00022992,2]
[367194407,1750698177354,-500.0,0.00022992,2]
[367194408,1750698177378,-500.0,0.00022992,2]
[367194409,1750698177402,-500.0,0.00022992,2]
[367194410,1750698177427,-500.0,0.00022992,2]
[367194411,1750698177453,-500.0,0.00022992,2]
[367194412,1750698177477,-383.07433796,0.00022992,2]
[367194413,1750698177499,-500.0,0.00022992,2]
[367194414,1750698177524,-500.0,0.00022992,2]
[367194415,1750698177546,-500.0,0.00022992,2]
[367194416,1750698177571,-500.0,0.00022992,2]
[367194417,1750698177596,-500.0,0.00022992,2]
[367194418,1750698177618,-500.0,0.00022992,2]
[367194419,1750698177640,-500.0,0.00022992,2]
[367194420,1750698177662,-500.0,0.00022992,2]
[367194421,1750698177686,-500.0,0.00022992,2]
[367194422,1750698177712,-500.0,0.00022992,2]
[367194423,1750698177734,-500.0,0.00022992,2]
[367194424,1750698177757,-500.0,0.00022992,2]
[367194425,1750698177780,-500.0,0.00022992,2]
[367194426,1750698177802,-500.0,0.00022992,2]
[367194427,1750698177824,-166.42445514,0.00022992,2]
[367194428,1750698177847,-500.0,0.00022992,2]
[367194429,1750698177869,-500.0,0.00022992,2]
[367194430,1750698177891,-500.0,0.00022992,2]
[367194431,1750698177913,-490.0,0.00022993,2]
[367194432,1750698177933,-490.0,0.00022993,2]
[367194433,1750698177955,-490.0,0.00022993,2]
[367194434,1750698177976,-490.0,0.00022993,2]
[367194435,1750698177996,-490.0,0.00022993,2]
[367194436,1750698178018,-490.0,0.00022993,2]
[367194437,1750698178038,-490.0,0.00022993,2]
[367194438,1750698178059,-490.0,0.00022993,2]
[367194439,1750698178080,-490.0,0.00022993,2]
[367194440,1750698178359,-490.0,0.00022993,2]
[367194441,1750698178381,-490.0,0.00022993,2]
[367194442,1750698178402,-490.0,0.00022993,2]
[367194443,1750698178422,-490.0,0.00022993,2]
[367194444,1750698178448,-490.0,0.00022993,2]
[367194445,1750698178470,-490.0,0.00022993,2]
[367194446,1750698178492,-490.0,0.00022993,2]
[367194447,1750698178515,-490.0,0.00022993,2]
[367194448,1750698178539,-1051.06,0.00022993,2]
[367194449,1750698178561,-490.0,0.00022993,2]
[367194450,1750698178582,-667.69,0.00022993,2]
[367194451,1750698178605,-1384.22,0.00022993,2]
[367194452,1750698178626,-490.0,0.00022993,2]
[367194453,1750698178647,-587.11,0.00022993,2]
[367194454,1750698178669,-646.96,0.00022993,2]
[367194455,1750698178694,-490.0,0.00022993,2]
[367194456,1750698178717,-490.0,0.00022993,2]
[367194457,1750698178739,-563.63,0.00022993,2]
[367194458,1750698178759,-490.0,0.00022993,2]
[367194459,1750698178781,-689.78,0.00022993,2]
[367194460,1750698178804,-490.0,0.00022993,2]
[367194461,1750698178828,-1429.39,0.00022993,2]
[367194462,1750698178850,-490.0,0.00022993,2]
[367194463,1750698178873,-794.78,0.00022993,2]
[367194464,1750698178894,-490.0,0.00022993,2]
[367194465,1750698178916,-381.74358974,0.00022993,2]
[367194466,1750698178936,-639.66,0.00022993,2]
[367194467,1750698178960,-490.0,0.00022993,2]
[367194468,1750698178982,-727.63,0.00022993,2]
[367194469,1750698179004,-688.37,0.00022993,2]
[367194470,1750698179027,-631.67,0.00022993,2]
[367194471,1750698179048,-490.0,0.00022993,2]
[367194472,1750698179069,-1332.97,0.00022993,2]
[367194473,1750698179091,-1254.18,0.00022993,2]
[367194474,1750698179112,-679.62,0.00022993,2]
[367194475,1750698179133,-490.0,0.00022993,2]
[367194476,1750698179154,-1392.01,0.00022993,2]
[367194477,1750698179176,-1071.03,0.00022993,2]
[367194478,1750698179198,-490.0,0.00022993,2]
[367194479,1750698179219,-655.34,0.00022993,2]
[367194480,1750698179241,-1329.76,0.00022993,2]
[367194481,1750698179264,-490.0,0.00022993,2]
[367194482,1750698179286,-490.0,0.00022993,2]
[367194483,1750698179308,-522.07570862,0.00022993,2]
[367194484,1750698179333,-3347.28,0.00022993,2]
[367194485,1750698179354,-530.38,0.00022993,2]
[367194486,1750698179375,-406.82,0.00022993,2]
[367194487,1750698179396,-490.0,0.00022993,2]
[367194488,1750698179417,-490.0,0.00022993,2]
[367194489,1750698179439,-608.99,0.00022993,2]
[367194490,1750698179463,-490.0,0.00022993,2]
[367194491,1750698179485,-490.0,0.00022993,2]
[367194492,1750698179507,-490.0,0.00022993,2]
[367194493,1750698179534,-1129.99,0.00022993,2]
[367194494,1750698179555,-490.0,0.00022993,2]
[367194495,1750698179577,-1250.96,0.00022993,2]
[367194496,1750698179601,-1379.66,0.00022993,2]
[367194497,1750698179623,-490.0,0.00022993,2]
[367194498,1750698179644,-611.24,0.00022993,2]
[367194499,1750698179664,-669.98,0.00022993,2]
[367194500,1750698179686,-651.34,0.00022993,2]
[367194501,1750698179708,-490.0,0.00022993,2]
[367194502,1750698179730,-1147.78,0.00022993,2]
[367194503,1750698179751,-872.36,0.00022993,2]
[367194504,1750698179772,-490.0,0.00022993,2]
[367194505,1750698179792,-490.0,0.00022993,2]
[367194506,1750698179813,-490.0,0.00022993,2]
[367194507,1750698179834,-848.13,0.00022993,2]
[367194508,1750698179855,-1362.47,0.00022993,2]
[367194509,1750698179875,-490.0,0.00022993,2]
[367194510,1750698179896,-490.11,0.00022993,2]
[367194511,1750698179916,-491.56,0.00022993,2]
[367194512,1750698179936,-1680.23,0.00022993,2]
[367194513,1750698179961,-490.0,0.00022993,2]
[367194514,1750698179982,-535.75,0.00022993,2]
[367194515,1750698180004,-710.24,0.00022993,2]
[367194516,1750698180026,-1005.59,0.00022993,2]
[367194517,1750698180049,-490.0,0.00022993,2]
[367194518,1750698180071,-1328.07,0.00022993,2]
[367194519,1750698180093,-1361.79,0.00022993,2]
[367194520,1750698180116,-490.0,0.00022993,2]
[367194521,1750698180137,-1093.69,0.00022993,2]
[367194522,1750698180158,-500.0,0.00022993,2]
[367194523,1750698180179,-490.0,0.00022993,2]
[367194524,1750698180202,-150.0,0.00022993,2]
[367194525,1750698180225,-490.0,0.00022993,2]
[367194526,1750698180246,-490.0,0.00022993,2]
[367194527,1750698180269,-495.46,0.00022993,2]
[367194528,1750698180291,-1026.37,0.00022993,2]
[367194529,1750698180313,-1042.94,0.00022993,2]
[367194530,1750698180335,-490.0,0.00022993,2]
[367194531,1750698180356,-490.0,0.00022993,2]
[367194532,1750698180377,-680.85,0.00022993,2]
[367194533,1750698180398,-999.16,0.00022993,2]
[367194534,1750698180418,-667.22,0.00022993,2]
[367194535,1750698180440,-1346.17,0.00022993,2]
[367194536,1750698180463,-693.98,0.00022993,2]
[367194537,1750698180484,-490.0,0.00022993,2]
[367194538,1750698180504,-1158.24,0.00022993,2]
[367194539,1750698180528,-490.0,0.00022993,2]
[367194540,1750698180550,-1114.67,0.00022993,2]
[367194541,1750698180571,-1150.2,0.00022993,2]
[367194542,1750698180592,-490.0,0.00022993,2]
[367194543,1750698180613,-796.17,0.00022993,2]
[367194544,1750698180635,-490.0,0.00022993,2]
[367194545,1750698180656,-724.02,0.00022993,2]
[367194546,1750698180677,-490.0,0.00022993,2]
[367194547,1750698180699,-908.82,0.00022993,2]
[367194548,1750698180722,-588.97,0.00022993,2]
[367194549,1750698180744,-917.59,0.00022993,2]
[367194550,1750698180766,-6546.4,0.00022993,2]
[367194551,1750698180787,-821.03,0.00022993,2]
[367194552,1750698180808,-2449.43,0.00022993,2]
[367194553,1750698180828,-490.0,0.00022993,2]
[367194554,1750698180849,-1290.1,0.00022993,2]
[367194555,1750698180869,-490.0,0.00022993,2]
[367194556,1750698180891,-1012.13,0.00022993,2]
[367194557,1750698180913,-795.86,0.00022993,2]
[367194558,1750698180934,-1057.356163,0.00022993,2]
[367194559,1750698180958,-3172.04,0.00022993,2]
[367194560,1750698180979,-268.45352044,0.00022994,2]
[367194561,1750698181000,-615.69,0.00022994,2]
[367194562,1750698181021,-490.0,0.00022994,2]
[367194563,1750698181043,-490.0,0.00022994,2]
[367194564,1750698181066,-490.0,0.00022994,2]
[367194565,1750698181088,-597.31823386,0.00022994,2]
[367194566,1750698181109,-490.0,0.00022994,2]
[367194567,1750698181129,-490.0,0.00022994,2]
[367194568,1750698181151,-799.05,0.00022994,2]
[367194569,1750698181172,-1873.866153,0.00022994,2]
[367194570,1750698181195,-490.0,0.00022994,2]
[367194571,1750698181215,-151.219152,0.00022994,2]
[367194572,1750698181236,-649.48,0.00022994,2]
[367194573,1750698181257,-164.909915,0.00022994,2]
[367194574,1750698181278,-4292.794542,0.00022994,2]
[367194575,1750698181299,-490.0,0.00022994,2]
[367194576,1750698181320,-154.115311,0.00022994,2]
[367194577,1750698181340,-153.552939,0.00022994,2]
[367194578,1750698181361,-151.476987,0.00022994,2]
[367194579,1750698181381,-747.22,0.00022994,2]
[367194580,1750698181401,-490.0,0.00022994,2]
[367194581,1750698181421,-1340.82,0.00022994,2]
[367194582,1750698181443,-490.0,0.00022994,2]
[367194583,1750698181464,-744.54,0.00022994,2]
[367194584,1750698181487,-490.0,0.00022994,2]
[367194585,1750698181510,-490.0,0.00022994,2]
[367194586,1750698181534,-813.47,0.00022994,2]
[367194587,1750698181556,-954.92,0.00022994,2]
[367194588,1750698181578,-740.83,0.00022994,2]
[367194589,1750698181601,-542.54,0.00022994,2]
[367194590,1750698181623,-930.09,0.00022994,2]
[367194591,1750698181645,-490.0,0.00022994,2]
[367194592,1750698181666,-1214.3,0.00022994,2]
[367194593,1750698181688,-906.02,0.00022994,2]
[367194594,1750698181711,-863.86,0.00022994,2]
[367194595,1750698181734,-744.84,0.00022994,2]
[367194596,1750698181755,-905.38,0.00022994,2]
[367194597,1750698181775,-490.0,0.00022994,2]
[367194598,1750698181797,-490.0,0.00022994,2]
[367194599,1750698181820,-490.0,0.00022994,2]
[367194600,1750698181842,-2195.2,0.00022994,2]
[367194601,1750698181863,-525.8,0.00022994,2]
[367194602,1750698181886,-490.0,0.00022994,2]
[367194603,1750698181907,-490.0,0.00022994,2]
[367194604,1750698181930,-490.0,0.00022994,2]
[367194605,1750698181955,-582.61,0.00022994,2]
[367194606,1750698181978,-582.61,0.00022994,2]
[367194607,1750698182000,-490.0,0.00022994,2]
[367194608,1750698182024,-736.73,0.00022994,2]
[367194609,1750698182049,-490.0,0.00022994,2]
[367194610,1750698182072,-525.51,0.00022994,2]
[367194611,1750698182094,-1567.31,0.00022994,2]
[367194612,1750698182118,-490.0,0.00022994,2]
[367194613,1750698182140,-490.0,0.00022994,2]
[367194614,1750698182161,-1058.05,0.00022994,2]
[367194615,1750698182182,-1291.93,0.00022994,2]
[367194616,1750698182208,-490.0,0.00022994,2]
[367194617,1750698182232,-600.98,0.00022994,2]
[367194618,1750698182254,-517.88,0.00022994,2]
[367194619,1750698182596,-490.0,0.00022994,2]
[367194620,1750698182618,-396.67342667,0.00022994,2]
[367194621,1750698182643,-490.46,0.00022994,2]
[367194622,1750698182666,-1362.32,0.00022994,2]
[367194623,1750698182689,-490.0,0.00022994,2]
[367194624,1750698182725,-462.90056522,0.00022994,2]
[367194625,1750698182750,-1589.35,0.00022994,2]
[367194626,1750698182773,-490.0,0.00022994,2]
[367194627,1750698182797,-490.0,0.00022994,2]
[367194628,1750698182820,-500.0,0.00022994,2]
[367194629,1750698182843,-490.0,0.00022994,2]
[367194630,1750698182865,-490.0,0.00022994,2]
[367194631,1750698182888,-490.0,0.00022994,2]
[367194632,1750698182911,-768.69,0.00022994,2]
[367194633,1750698182933,-490.0,0.00022994,2]
[367194634,1750698182957,-571.21,0.00022994,2]
[367194635,1750698182981,-1229.0,0.00022994,2]
[367194636,1750698183004,-525.10327501,0.00022994,2]
[367194637,1750698183026,-490.0,0.00022994,2]
[367194638,1750698183050,-490.0,0.00022994,2]
[367194639,1750698183075,-490.0,0.00022994,2]
[367194640,1750698183100,-717.42,0.00022994,2]
[367194641,1750698183124,-1352.76,0.00022994,2]
[367194642,1750698183147,-269.05808254,0.00022994,2]
[367194643,1750698183171,-1038.25,0.00022994,2]
[367194644,1750698183196,-1213.85,0.00022994,2]
[367194645,1750698183218,-490.0,0.00022994,2]
[367194646,1750698183241,-490.0,0.00022994,2]
[367194647,1750698183269,-1003.55,0.00022994,2]
[367194648,1750698183294,-806.56,0.00022994,2]
[367194649,1750698183317,-742.65,0.00022994,2]
[367194650,1750698183343,-490.0,0.00022994,2]
[367194651,1750698183368,-490.0,0.00022994,2]
[367194652,1750698183392,-490.0,0.00022994,2]
[367194653,1750698183417,-490.0,0.00022994,2]
[367194654,1750698183440,-490.0,0.00022994,2]
[367194655,1750698183467,-738.7,0.00022994,2]
[367194656,1750698183490,-617.83302658,0.00022994,2]
[367194657,1750698183514,-707.52,0.00022994,2]
[367194658,1750698183541,-1373.26,0.00022994,2]
[367194659,1750698183565,-1373.23,0.00022994,2]
[367194660,1750698183591,-700.64,0.00022994,2]
[367194661,1750698183616,-490.0,0.00022994,2]
[367194662,1750698183640,-1633.97,0.00022994,2]
[367194663,1750698183664,-1720.84,0.00022994,2]
[367194664,1750698183686,-490.0,0.00022994,2]
[367194665,1750698183712,-1359.31,0.00022994,2]
[367194666,1750698183734,-490.0,0.00022994,2]
[367194667,1750698183757,-681.92,0.00022994,2]
[367194668,1750698183780,-681.92,0.00022994,2]
[367194669,1750698183804,-1445.08,0.00022994,2]
[367194670,1750698183828,-1289.97,0.00022994,2]
[367194671,1750698183852,-490.0,0.00022994,2]
[367194672,1750698183876,-6706.21,0.00022994,2]
[367194673,1750698183900,-1126.5,0.00022994,2]
[367194674,1750698183928,-2852.94,0.00022994,2]
[367194675,1750698183960,-962.33,0.00022994,2]
[367194676,1750698183983,-490.0,0.00022994,2]
[367194677,1750698184009,-595.04,0.00022994,2]
[367194678,1750698184033,-662.37,0.00022994,2]
[367194679,1750698184057,-1629.41,0.00022994,2]
[367194680,1750698184081,-820.11,0.00022994,2]
[367194681,1750698184104,-1308.92,0.00022994,2]
[367194682,1750698184128,-3608.78,0.00022994,2]
[367194683,1750698184151,-2161.85,0.00022994,2]
[367194684,1750698184174,-490.0,0.00022994,2]
[367194685,1750698184198,-1279.8,0.00022994,2]
[367194686,1750698184222,-2228.81,0.00022994,2]
[367194687,1750698184247,-1241.62,0.00022994,2]
[367194688,1750698184272,-967.82,0.00022994,2]
[367194689,1750698184297,-1527.24,0.00022994,2]
[367194690,1750698184322,-1142.1,0.00022994,2]
[367194691,1750698184349,-1406.32,0.00022994,2]
[367194692,1750698184376,-1031.09,0.00022994,2]
[367194693,1750698184401,-2883.75,0.00022994,2]
[367194694,1750698184425,-2686.23,0.00022994,2]
[367194695,1750698184451,-1320.48,0.00022994,2]